[Event "79th UKR-ch Women 2019"]
[Site "Lutsk"]
[Date "2019.12.17"]
[Round "7"]
[White "Hrebenshchykova, Yelyzaveta"]
[Black "Rakhmangulova, Anastasiya"]
[Result "1-0"]
[ECO "B11"]
[WhiteElo "2029"]
[BlackElo "2215"]
[Annotator "NA"]
[PlyCount "73"]
[EventDate "2019.??.??"]
[EventCountry "UKR"]
[SourceTitle "playchess.com"]
[Source "ChessBase"]
[SourceQuality "1"]
[TimeControl "40/5400+30:1800+30"]

1. e4 c6 2. Nc3 d5 3. Nf3 dxe4 4. Nxe4 Nf6 5. Qe2 Na6 6. d4 Qd5 7. Nxf6+ gxf6 8. h3 Bf5 9. c3 e6 10. g3 Be4 11. Bg2 f5 12. Bf4 Bg7 13. O-O h5 14. h4 $16 O-O-O 15. Rfd1 Nc7 16. b4 Qb5 17. c4 Qxb4 18. Ne5 Bxg2 19. Kxg2 Qe7 20. Rab1 Qe8 21. Qb2 b6 22. c5 b5 23. Nc4 Nd5 24. Nd6+ Rxd6 25. Bxd6 Rg8 26. a4 b4 27. a5 Bf8 28. Qe2 Bxd6 29. Qa6+ Kb8 30. cxd6 Qd7 31. Rdc1 Qxd6 32. Rxc6 Ne3+ 33. Kh3 Qxd4 34. Qb5+ Ka8 35. Rxb4 Qd7 36. fxe3 f4 37. Rc2 1-0

[Event "79th UKR-ch Women 2019"]
[Site "Lutsk"]
[Date "2019.12.18"]
[Round "8.1"]
[White "Tsirulnik, Maritsa"]
[Black "Doluhanova, Evgeniya"]
[Result "0-1"]
[ECO "E01"]
[WhiteElo "2119"]
[BlackElo "2293"]
[Annotator "NA"]
[PlyCount "78"]
[EventDate "2019.12.10"]
[EventType "tourn"]
[EventCountry "UKR"]
[SourceTitle "playchess.com"]
[Source "ChessBase"]
[SourceQuality "1"]
[TimeControl "40/5400+30:1800+30"]

1. d4 {[%emt 0:00:00]} Nf6 {[%emt 0:00:00]} 2. c4 {[%emt 0:00:00]} e6 {[%emt 0:00:00]} 3. g3 {[%emt 0:00:00]} d5 {[%emt 0:00:00]} 4. Bg2 {[%emt 0:00:00]} dxc4 {[%emt 0:00:03]} 5. Qa4+ {[%emt 0:00:00]} Bd7 {[%emt 0:00:23]} 6. Qxc4 {[%emt 0:00:05]} Qc8 {[%emt 0:00:31]} 7. Nc3 {[%emt 0:08:10]} c5 {[%emt 0:02:13]} 8. Nf3 {[%emt 0:23:43]} a6 {[%emt 0:09:43]} 9. dxc5 {[%emt 0:09:13]} b5 {[%emt 0:08:49]} 10. Qf4 {[%emt 0:05:25]} Bxc5 {[%emt 0:01:30]} 11. Ne5 {[%emt 0:02:57]} Ra7 {[%emt 0:00:23] [#]} 12. O-O {[%emt 0:08:07]} ({White should try} 12. Ne4 $1 $16 {[%cal Re4f6]} Bb4+ 13. Kf1) 12... O-O $1 {[%emt 0:01:27]} 13. Be3 {[%emt 0:01:44]} Rc7 {[%emt 0:04:06]} 14. Rfd1 {[%emt 0:04:39]} Bxe3 {[%emt 0:02:53]} 15. Qxe3 {[%emt 0:00:06]} b4 {[%emt 0:00:36]} 16. Nxd7 {[%emt 0:01:08]} Nbxd7 {[%emt 0:02:12]} 17. Na4 {[%emt 0:00:35]} Qb8 {[%emt 0:01:09]} 18. Rd4 $11 {[%emt 0:08:13]} Qb5 {[%emt 0:02:20]} 19. Qb3 {[%emt 0:04:17]} a5 {[%emt 0:01:38]} 20. e3 {[%emt 0:00:39]} Rfc8 {[%emt 0:01:32]} 21. Rad1 {[%emt 0:00:20]} g6 {[%emt 0:02:00]} 22. a3 {[%emt 0:06:19]} Rb8 {[%emt 0:15:47]} 23. Bf1 {[%emt 0:01:28]} Qf5 {[%emt 0:05:58]} 24. axb4 {[%emt 0:01:40]} e5 {[%emt 0:04:08]} 25. R4d2 {[%emt 0:03:29]} Rxb4 {[%emt 0:00:30]} 26. Qa2 {[%emt 0:01:09]} Nc5 {[%emt 0:04:34]} 27. Nxc5 {[%emt 0:01:14]} Rxc5 {[%emt 0:00:04]} 28. Bd3 {[%emt 0:01:39]} e4 {[%emt 0:03:48]} 29. Be2 {[%emt 0:01:07]} h5 {[%emt 0:00:25]} 30. Kg2 {[%emt 0:02:36]} Ng4 {[%emt 0:01:44]} 31. Bxg4 {[%emt 0:00:07]} Qxg4 {[%emt 0:00:05]} 32. Rd8+ {[%emt 0:01:35]} Kg7 {[%emt 0:00:08]} 33. b3 {[%emt 0:00:14]} Qf3+ {[%emt 0:00:59]} 34. Kg1 {[%emt 0:00:18]} Qf6 {[%emt 0:00:42]} 35. R8d5 {[%emt 0:01:32]} Rxd5 {[%emt 0:01:43]} 36. Rxd5 {[%emt 0:00:03]} a4 {[%emt 0:01:14]} 37. Rd2 {[%emt 0:02:19]} axb3 {[%emt 0:01:19]} 38. Qb2 {[%emt 0:00:09]} Qxb2 {[%emt 0:00:37]} 39. Rxb2 {[%emt 0:00:04]} Kf6 {[%emt 0:00:04]} 0-1

[Event "79th UKR-ch Women 2019"]
[Site "Lutsk"]
[Date "2019.12.18"]
[Round "8.2"]
[White "Babiy, Olga"]
[Black "Zhukova, Natalia"]
[Result "0-1"]
[ECO "C78"]
[WhiteElo "2258"]
[BlackElo "2324"]
[Annotator "NA"]
[PlyCount "124"]
[EventDate "2019.12.10"]
[EventType "tourn"]
[EventCountry "UKR"]
[SourceTitle "playchess.com"]
[Source "ChessBase"]
[SourceQuality "1"]
[TimeControl "40/5400+30:1800+30"]

1. e4 {[%emt 0:00:00]} e5 {[%emt 0:00:00]} 2. Nf3 {[%emt 0:00:00]} Nc6 {[%emt 0:00:00]} 3. Bb5 {[%emt 0:00:00]} a6 {[%emt 0:00:00]} 4. Ba4 {[%emt 0:00:00]} Nf6 {[%emt 0:00:14]} 5. O-O {[%emt 0:00:00]} b5 {[%emt 0:00:37]} 6. Bb3 {[%emt 0:00:02]} Bc5 {[%emt 0:00:05]} 7. c3 {[%emt 0:05:12]} d6 {[%emt 0:00:30]} 8. d4 {[%emt 0:00:41]} Bb6 {[%emt 0:00:07]} 9. Bg5 {[%emt 0:02:02]} h6 {[%emt 0:06:21]} 10. Bxf6 {[%emt 0:00:22]} Qxf6 {[%emt 0:00:20]} 11. Bd5 {[%emt 0:00:08]} Bd7 $1 {[%emt 0:08:26]} 12. a4 {[%emt 0:02:20]} Rb8 {[%emt 0:02:42]} 13. axb5 {[%emt 0:08:43]} axb5 {[%emt 0:00:18]} 14. Na3 {[%emt 0:14:44]} Ne7 {[%emt 0:07:37]} 15. Nc2 {[%emt 0:24:50]} Ng6 {[%emt 0:21:58]} 16. Ne3 {[%emt 0:07:28]} Nf4 {[%emt 0:05:56]} 17. g3 $11 {[%emt 0:01:13]} Nh3+ {[%emt 0:04:07]} 18. Kg2 {[%emt 0:04:25]} Ng5 {[%emt 0:01:41]} 19. Nxg5 {[%emt 0:01:24]} hxg5 {[%emt 0:00:57]} 20. Ng4 {[%emt 0:00:10]} Qg6 {[%emt 0:02:34]} 21. f3 {[%emt 0:04:06]} c6 {[%emt 0:06:40]} 22. Bb3 {[%emt 0:01:20]} Bxg4 {[%emt 0:05:37]} 23. fxg4 {[%emt 0:00:05]} Qxe4+ {[%emt 0:00:05]} 24. Qf3 {[%emt 0:00:08]} Qxf3+ {[%emt 0:00:12]} 25. Rxf3 {[%emt 0:00:05]} f6 {[%emt 0:02:14]} 26. dxe5 {[%emt 0:00:11]} dxe5 {[%emt 0:00:21]} 27. Bc2 {[%emt 0:02:03]} Ke7 {[%emt 0:03:28]} 28. Rd1 {[%emt 0:08:46]} Rhd8 {[%emt 0:00:43]} 29. Rff1 {[%emt 0:00:10]} b4 {[%emt 0:01:27]} 30. Be4 {[%emt 0:00:47]} bxc3 {[%emt 0:10:58]} 31. bxc3 {[%emt 0:00:09]} Ba5 {[%emt 0:00:05]} 32. Rxd8 {[%emt 0:01:18]} Rxd8 {[%emt 0:00:33]} 33. Bxc6 {[%emt 0:00:31]} Bxc3 {[%emt 0:00:20]} 34. Be4 {[%emt 0:02:26]} Rb8 {[%emt 0:07:43]} 35. Rb1 {[%emt 0:01:28]} Bb2 {[%emt 0:00:25]} 36. Rd1 {[%emt 0:02:59]} Bd4 {[%emt 0:00:24]} 37. Rb1 {[%emt 0:00:07]} Bb2 {[%emt 0:00:15]} 38. Rd1 {[%emt 0:00:04]} Rb4 {[%emt 0:00:53]} 39. Kf3 {[%emt 0:00:44]} Bd4 {[%emt 0:00:44]} 40. Rb1 {[%emt 0:00:00]} Ra4 {[%emt 0:00:00]} 41. Bd5 {[%emt 0:11:51]} Kd6 {[%emt 0:04:45]} 42. Bb3 {[%emt 0:00:48]} Ra7 {[%emt 0:02:51]} 43. h4 {[%emt 0:13:17]} gxh4 {[%emt 0:15:42]} 44. gxh4 {[%emt 0:00:16]} Rc7 {[%emt 0:00:02]} 45. h5 {[%emt 0:02:59]} Rc3+ {[%emt 0:01:05]} 46. Ke4 {[%emt 0:00:34]} g6 {[%emt 0:01:38]} 47. hxg6 {[%emt 0:01:03]} Re3+ {[%emt 0:00:04]} 48. Kf5 {[%emt 0:00:04]} Rf3+ {[%emt 0:00:04]} 49. Ke4 {[%emt 0:00:04]} Re3+ {[%emt 0:00:10]} 50. Kf5 {[%emt 0:00:04]} Rf3+ {[%emt 0:00:03]} 51. Ke4 {[%emt 0:00:11]} Rf4+ {[%emt 0:00:39]} 52. Kd3 {[%emt 0:00:30]} Rxg4 {[%emt 0:00:02]} 53. Bf7 {[%emt 0:00:25]} f5 {[%emt 0:00:25]} 54. Rf1 {[%emt 0:02:37]} Rg3+ {[%emt 0:02:48]} 55. Ke2 {[%emt 0:00:25]} f4 {[%emt 0:01:22]} 56. Rf3 {[%emt 0:00:27]} Rg1 {[%emt 0:02:15]} 57. Kd3 {[%emt 0:01:46]} Ke7 {[%emt 0:00:06]} 58. Ke4 {[%emt 0:01:06]} Kf6 {[%emt 0:00:01]} 59. Rh3 {[%emt 0:03:00]} Re1+ {[%emt 0:00:04]} 60. Kd3 {[%emt 0:01:07]} Bc5 {[%emt 0:05:09]} 61. Rh4 {[%emt 0:01:39]} f3 {[%emt 0:00:41]} 62. Bc4 {[%emt 0:03:32]} f2 {[%emt 0:00:16] Kd4} 0-1

[Event "79th UKR-ch Women 2019"]
[Site "Lutsk"]
[Date "2019.12.18"]
[Round "8.4"]
[White "Osmak, Iulija"]
[Black "Hrebenshchykova, Yelyzaveta"]
[Result "1/2-1/2"]
[ECO "E73"]
[WhiteElo "2388"]
[BlackElo "2029"]
[Annotator "NA"]
[PlyCount "70"]
[EventDate "2019.12.10"]
[EventType "tourn"]
[EventCountry "UKR"]
[SourceTitle "playchess.com"]
[Source "ChessBase"]
[SourceQuality "1"]
[TimeControl "40/5400+30:1800+30"]

1. d4 {[%emt 0:00:32]} Nf6 {[%emt 0:00:00]} 2. c4 {[%emt 0:00:05]} g6 {[%emt 0:00:00]} 3. Nc3 {[%emt 0:00:05]} Bg7 {[%emt 0:00:00]} 4. e4 {[%emt 0:00:04]} d6 {[%emt 0:00:00]} 5. Be2 {[%emt 0:00:11]} O-O {[%emt 0:00:06]} 6. Be3 {[%emt 0:00:02]} e5 {[%emt 0:01:11]} 7. d5 {[%emt 0:00:33]} Ne8 {[%emt 0:01:13]} 8. g4 {[%emt 0:08:23]} f5 {[%emt 0:02:36]} 9. gxf5 {[%emt 0:00:48]} gxf5 {[%emt 0:00:06]} 10. exf5 {[%emt 0:00:03]} Bxf5 {[%emt 0:00:13]} 11. Nf3 {[%emt 0:02:56]} Na6 {[%emt 0:19:31]} 12. Ng5 {[%emt 0:08:10]} Nc5 {[%emt 0:08:25]} 13. Rg1 {[%emt 0:08:50]} Kh8 {[%emt 0:10:15]} 14. Qd2 {[%emt 0:15:01]} Nf6 $16 {[%emt 0:15:19]} 15. O-O-O {[%emt 0:15:25]} Qe7 {[%emt 0:05:36]} 16. Rg3 {[%emt 0:05:19]} Rg8 {[%emt 0:03:52]} 17. Bxc5 {[%emt 0:05:40]} dxc5 {[%emt 0:00:07]} 18. d6 {[%emt 0:00:08]} cxd6 {[%emt 0:01:32]} 19. Qxd6 {[%emt 0:00:17]} Rge8 {[%emt 0:04:22]} 20. Nd5 {[%emt 0:09:55]} Nxd5 {[%emt 0:01:42]} 21. Rxd5 {[%emt 0:00:05]} Bg6 {[%emt 0:12:41]} 22. Qxe7 {[%emt 0:02:49]} Rxe7 {[%emt 0:00:04]} 23. Rxc5 {[%emt 0:00:04]} e4 {[%emt 0:01:51]} 24. Rg2 {[%emt 0:07:44]} Rd8 {[%emt 0:01:12]} 25. h4 {[%emt 0:01:20]} h6 {[%emt 0:06:30]} 26. h5 {[%emt 0:00:50]} Bxh5 {[%emt 0:01:23]} 27. Bxh5 {[%emt 0:00:36]} hxg5 {[%emt 0:00:02]} 28. Bg4 {[%emt 0:01:47]} Be5 {[%emt 0:00:15]} 29. Rd5 {[%emt 0:01:51]} Rf8 {[%emt 0:02:18]} 30. Kc2 {[%emt 0:02:53]} Kg7 {[%emt 0:00:45]} 31. b3 {[%emt 0:01:57]} Rh8 {[%emt 0:01:27]} 32. Bf5 {[%emt 0:00:49]} Bf4 {[%emt 0:00:29]} 33. Rd4 {[%emt 0:00:15]} e3 {[%emt 0:00:54]} 34. fxe3 {[%emt 0:01:01]} Bxe3 {[%emt 0:00:07]} 35. Re4 {[%emt 0:00:17]} Rxe4 {[%emt 0:00:11]} 1/2-1/2

[Event "79th UKR-ch Women 2019"]
[Site "Lutsk"]
[Date "2019.12.18"]
[Round "8.5"]
[White "Berdnyk, Mariia"]
[Black "Martynkova, Olena"]
[Result "1/2-1/2"]
[ECO "D11"]
[WhiteElo "2319"]
[BlackElo "2243"]
[Annotator "NA"]
[PlyCount "47"]
[EventDate "2019.12.10"]
[EventType "tourn"]
[EventCountry "UKR"]
[SourceTitle "playchess.com"]
[Source "ChessBase"]
[SourceQuality "1"]
[TimeControl "40/5400+30:1800+30"]

1. d4 {[%emt 0:00:00]} d5 {[%emt 0:00:00]} 2. c4 {[%emt 0:00:00]} c6 {[%emt 0:00:09]} 3. Nf3 {[%emt 0:00:00]} Nf6 {[%emt 0:00:24]} 4. Qc2 {[%emt 0:00:00]} e6 {[%emt 0:01:45]} 5. g3 {[%emt 0:00:00]} Nbd7 {[%emt 0:00:55]} 6. Bg2 {[%emt 0:00:04]} Bd6 {[%emt 0:01:00]} 7. O-O {[%emt 0:00:07]} O-O {[%emt 0:01:04]} 8. Rd1 {[%emt 0:00:05]} Re8 {[%emt 0:02:56]} 9. Nc3 {[%emt 0:01:41]} Qe7 {[%emt 0:07:56]} 10. b3 {[%emt 0:14:14]} a6 {[%emt 0:21:49]} 11. e4 {[%emt 0:04:54]} (11. Bb2 $16) 11... Nxe4 {[%emt 0:02:45]} 12. Nxe4 {[%emt 0:00:05]} dxe4 {[%emt 0:00:04]} 13. Qxe4 {[%emt 0:00:04]} e5 {[%emt 0:05:49]} 14. dxe5 {[%emt 0:01:20]} Nxe5 {[%emt 0:02:12]} 15. Bb2 {[%emt 0:10:30]} Bg4 {[%emt 0:10:37]} 16. Bxe5 {[%emt 0:11:10]} Bxf3 $1 {[%emt 0:00:41]} 17. Qxf3 {[%emt 0:02:22]} Bxe5 {[%emt 0:02:48]} 18. Rac1 $11 {[%emt 0:02:17]} Rad8 {[%emt 0:01:36]} 19. Qe3 {[%emt 0:03:45]} Bf6 {[%emt 0:04:39]} 20. Qxe7 {[%emt 0:07:33]} Bxe7 {[%emt 0:00:23]} 21. Bf3 {[%emt 0:01:04]} a5 {[%emt 0:03:20]} 22. Kf1 {[%emt 0:01:57]} Kf8 {[%emt 0:01:23]} 23. Bg4 {[%emt 0:02:12]} Bc5 {[%emt 0:08:12]} 24. Bd7 {[%emt 0:08:11]} 1/2-1/2

[Event "79th UKR-ch Women 2019"]
[Site "Lutsk"]
[Date "2019.12.19"]
[Round "9.1"]
[White "Martynkova, Olena"]
[Black "Tsirulnik, Maritsa"]
[Result "1/2-1/2"]
[ECO "E15"]
[WhiteElo "2243"]
[BlackElo "2119"]
[Annotator "ChessBase"]
[PlyCount "108"]
[EventDate "2019.12.10"]
[EventType "tourn"]
[EventCountry "UKR"]
[SourceTitle "playchess.com"]
[Source "ChessBase"]
[SourceQuality "1"]
[TimeControl "40/5400+30:1800+30"]

1. d4 {[%emt 0:00:00]} Nf6 {[%emt 0:00:00]} 2. c4 {[%emt 0:00:00]} e6 {[%emt 0:00:00]} 3. Nf3 {[%emt 0:00:26]} b6 {[%emt 0:00:00]} 4. g3 {[%emt 0:00:44]} Ba6 {[%emt 0:00:05]} 5. b3 {[%emt 0:01:42]} Bb4+ {[%emt 0:00:19]} 6. Bd2 {[%emt 0:00:41]} Be7 {[%emt 0:00:08]} 7. Nc3 {[%emt 0:03:01]} d5 {[%emt 0:00:24]} 8. cxd5 {[%emt 0:09:23]} exd5 {[%emt 0:00:08]} 9. Bg2 {[%emt 0:00:23]} O-O {[%emt 0:00:26]} 10. O-O {[%emt 0:02:24]} Bb7 {[%emt 0:04:33]} 11. Rc1 {[%emt 0:08:03]} Ne4 {[%emt 0:13:42]} 12. Bf4 {[%emt 0:05:05]} Nxc3 {[%emt 0:08:29]} 13. Rxc3 {[%emt 0:00:22]} Na6 {[%emt 0:00:36]} 14. h4 {[%emt 0:08:17]} c5 {[%emt 0:02:41]} 15. Qb1 {[%emt 0:14:58]} Bf6 {[%emt 0:02:40]} 16. Rd1 {[%emt 0:03:06]} Rc8 {[%emt 0:07:49]} 17. Bh3 {[%emt 0:06:22]} Ra8 {[%emt 0:00:26]} 18. h5 {[%emt 0:07:29]} Re8 {[%emt 0:04:40]} 19. Bf5 {[%emt 0:02:43]} h6 {[%emt 0:03:26]} 20. e3 {[%emt 0:05:54]} Nc7 {[%emt 0:04:02]} 21. Rcc1 {[%emt 0:06:21]} Ne6 {[%emt 0:00:39]} 22. Bxe6 {[%emt 0:01:41]} Rxe6 {[%emt 0:00:48]} 23. dxc5 {[%emt 0:01:54]} bxc5 {[%emt 0:03:38]} 24. Rxc5 {[%emt 0:00:55]} Rc8 {[%emt 0:05:01]} 25. b4 {[%emt 0:00:50]} Rb6 {[%emt 0:01:04]} 26. Rxc8 {[%emt 0:03:32]} Qxc8 {[%emt 0:00:07]} 27. Nd4 {[%emt 0:01:42]} Bxd4 {[%emt 0:09:49]} 28. exd4 {[%emt 0:00:37]} Qg4 {[%emt 0:01:30]} 29. Rc1 {[%emt 0:03:41]} Bc8 {[%emt 0:04:44]} 30. f3 {[%emt 0:01:16]} Qh3 {[%emt 0:00:52]} 31. Qc2 {[%emt 0:01:23]} Bf5 {[%emt 0:00:24]} 32. Qd2 {[%emt 0:00:32]} Re6 {[%emt 0:02:22]} 33. Qh2 {[%emt 0:00:29]} Qxh2+ {[%emt 0:00:57]} 34. Kxh2 {[%emt 0:00:02]} Re2+ {[%emt 0:00:07]} 35. Kg1 {[%emt 0:00:46]} Rxa2 {[%emt 0:01:54]} 36. g4 {[%emt 0:00:35]} Bd3 {[%emt 0:01:22]} 37. Rc5 {[%emt 0:00:34]} Be2 {[%emt 0:02:18]} 38. Kf2 {[%emt 0:00:34]} Bd1+ {[%emt 0:00:43]} 39. Kg3 {[%emt 0:00:32]} Ra3 {[%emt 0:00:17]} 40. Rc8+ {[%emt 0:00:00]} Kh7 {[%emt 0:00:00]} 41. Bd6 {[%emt 0:10:05]} Rxf3+ {[%emt 0:00:56]} 42. Kg2 {[%emt 0:05:50]} Rd3 {[%emt 0:03:53]} 43. Bc5 {[%emt 0:01:45]} Bxg4 {[%emt 0:00:18]} 44. Rc7 {[%emt 0:00:11]} Bxh5 {[%emt 0:00:34]} 45. Rxa7 {[%emt 0:02:40]} Rb3 {[%emt 0:08:12]} 46. Rb7 {[%emt 0:00:25]} Kg6 {[%emt 0:09:53]} 47. b5 {[%emt 0:01:34]} Kf5 {[%emt 0:16:01]} 48. b6 {[%emt 0:00:56]} Kf4 {[%emt 0:01:09]} 49. Re7 {[%emt 0:03:34]} Bf3+ {[%emt 0:01:35]} 50. Kg1 {[%emt 0:04:32]} Rb1+ {[%emt 0:01:52]} 51. Kf2 {[%emt 0:00:05]} Rb2+ {[%emt 0:00:05]} 52. Kg1 {[%emt 0:00:40]} Rb1+ {[%emt 0:06:24]} 53. Kf2 {[%emt 0:00:06]} Rb2+ {[%emt 0:00:09]} 54. Kg1 {[%emt 0:00:46]} Rb1+ {[%emt 0:01:29]} 1/2-1/2

[Event "79th UKR-ch Women 2019"]
[Site "Lutsk"]
[Date "2019.12.19"]
[Round "9.2"]
[White "Hrebenshchykova, Yelyzaveta"]
[Black "Berdnyk, Mariia"]
[Result "1/2-1/2"]
[ECO "B70"]
[WhiteElo "2029"]
[BlackElo "2319"]
[Annotator "RC"]
[PlyCount "70"]
[EventDate "2019.12.10"]
[EventType "tourn"]
[EventCountry "UKR"]
[SourceTitle "playchess.com"]
[Source "ChessBase"]
[SourceQuality "1"]
[TimeControl "40/5400+30:1800+30"]

1. e4 {[%emt 0:00:00]} c5 {[%emt 0:00:00]} 2. Nf3 {[%emt 0:00:00]} d6 {[%emt 0:00:00]} 3. d4 {[%emt 0:00:00]} cxd4 {[%emt 0:00:00]} 4. Nxd4 {[%emt 0:00:00]} Nf6 {[%emt 0:00:00]} 5. Nc3 {[%emt 0:00:00]} g6 {[%emt 0:00:00]} 6. Bc4 {[%emt 0:00:06]} Bg7 {[%emt 0:00:00]} 7. O-O {[%emt 0:00:08]} O-O {[%emt 0:00:04]} 8. Re1 {[%emt 0:00:05]} Nc6 {[%emt 0:00:24]} 9. Nb3 {[%emt 0:00:36]} Ne5 {[%emt 0:01:31]} 10. Bf1 {[%emt 0:00:15]} Be6 {[%emt 0:00:10]} 11. Nd5 {[%emt 0:08:46]} Rc8 {[%emt 0:06:10]} 12. a4 {[%emt 0:20:35]} Nc4 {[%emt 0:13:49]} 13. a5 {[%emt 0:12:48]} Bxd5 {[%emt 0:10:50]} 14. exd5 {[%emt 0:00:04]} Qd7 {[%emt 0:00:11]} 15. Nd2 {[%emt 0:07:54]} b5 {[%emt 0:06:20]} 16. axb6 {[%emt 0:02:43]} Nxb6 {[%emt 0:00:09]} 17. c4 {[%emt 0:00:13]} Ng4 {[%emt 0:00:54]} 18. Ra2 {[%emt 0:12:45]} Qf5 {[%emt 0:12:07]} 19. Nf3 {[%emt 0:06:13]} Nxc4 {[%emt 0:01:16]} 20. Rxa7 {[%emt 0:02:46]} Nxb2 {[%emt 0:08:29]} 21. Bxb2 {[%emt 0:03:00]} Bxb2 {[%emt 0:00:01]} 22. Raxe7 {[%emt 0:00:18]} Bc3 {[%emt 0:03:39]} 23. R1e2 {[%emt 0:06:38]} Ra8 {[%emt 0:03:29]} 24. Qb3 {[%emt 0:01:49]} Bf6 {[%emt 0:01:07]} 25. Rb7 {[%emt 0:06:36]} Ra1 {[%emt 0:00:39]} 26. Rb8 {[%emt 0:00:22]} Ne5 {[%emt 0:01:57]} 27. Nd4 {[%emt 0:02:35]} Qf4 {[%emt 0:00:15]} 28. Nc2 {[%emt 0:01:45]} Rd1 {[%emt 0:07:13]} 29. Ne3 {[%emt 0:00:53]} Rc1 {[%emt 0:02:50]} 30. Rc2 {[%emt 0:01:10]} Rxc2 {[%emt 0:04:25]} 31. Rxf8+ {[%emt 0:00:10]} Kxf8 {[%emt 0:00:06]} 32. Qxc2 {[%emt 0:00:11]} h5 {[%emt 0:00:36]} 33. Be2 {[%emt 0:04:04]} Kg7 {[%emt 0:01:16]} 34. g3 {[%emt 0:00:45]} Qb4 {[%emt 0:00:42]} 35. Kg2 {[%emt 0:00:24]} Qb6 {[%emt 0:04:31]} 1/2-1/2

[Event "79th UKR-ch Women 2019"]
[Site "Lutsk"]
[Date "2019.12.19"]
[Round "9.4"]
[White "Zhukova, Natalia"]
[Black "Rakhmangulova, Anastasiya"]
[Result "1/2-1/2"]
[ECO "D14"]
[WhiteElo "2324"]
[BlackElo "2215"]
[Annotator "ChessBase"]
[PlyCount "40"]
[EventDate "2019.12.10"]
[EventType "tourn"]
[EventCountry "UKR"]
[SourceTitle "playchess.com"]
[Source "ChessBase"]
[SourceQuality "1"]
[TimeControl "40/5400+30:1800+30"]

1. d4 {[%emt 0:00:00]} d5 {[%emt 0:00:00]} 2. c4 {[%emt 0:00:00]} c6 {[%emt 0:00:00]} 3. cxd5 {[%emt 0:00:10]} cxd5 {[%emt 0:00:00]} 4. Nf3 {[%emt 0:00:21]} Nc6 {[%emt 0:00:06]} 5. Nc3 {[%emt 0:00:26]} Nf6 {[%emt 0:00:31]} 6. Bf4 {[%emt 0:01:14]} Bf5 {[%emt 0:01:01]} 7. e3 {[%emt 0:00:21]} e6 {[%emt 0:00:53]} 8. Bd3 {[%emt 0:00:44]} Bxd3 {[%emt 0:00:39]} 9. Qxd3 {[%emt 0:00:10]} Bd6 {[%emt 0:00:33]} 10. Bxd6 {[%emt 0:03:36]} Qxd6 {[%emt 0:00:04]} 11. O-O {[%emt 0:00:34]} O-O {[%emt 0:00:51]} 12. Rac1 {[%emt 0:02:04]} Rfc8 {[%emt 0:02:11]} 13. a3 {[%emt 0:01:13]} a6 {[%emt 0:01:38]} 14. Rc2 {[%emt 0:00:52]} Rc7 {[%emt 0:01:14]} 15. Rfc1 {[%emt 0:00:53]} Rac8 {[%emt 0:01:38]} 16. Ne2 {[%emt 0:02:57]} Ne7 {[%emt 0:02:24]} 17. Rxc7 {[%emt 0:00:40]} Rxc7 {[%emt 0:00:05]} 18. Rxc7 {[%emt 0:00:21]} Qxc7 {[%emt 0:00:06]} 19. Qc3 {[%emt 0:00:23]} Qxc3 {[%emt 0:00:21]} 20. Nxc3 {[%emt 0:00:09]} Nc6 {[%emt 0:00:35]} 1/2-1/2

[Event "79th UKR-ch Women 2019"]
[Site "Lutsk"]
[Date "2019.12.19"]
[Round "9.5"]
[White "Doluhanova, Evgeniya"]
[Black "Babiy, Olga"]
[Result "1-0"]
[ECO "A06"]
[WhiteElo "2293"]
[BlackElo "2258"]
[Annotator "RC"]
[PlyCount "85"]
[EventDate "2019.12.10"]
[EventType "tourn"]
[EventCountry "UKR"]
[SourceTitle "playchess.com"]
[Source "ChessBase"]
[SourceQuality "1"]
[TimeControl "40/5400+30:1800+30"]

1. Nf3 {[%emt 0:03:50]} d5 {[%emt 0:00:00]} 2. e3 {[%emt 0:02:41]} Nf6 {[%emt 0:00:38]} 3. c4 {[%emt 0:00:29]} c6 {[%emt 0:01:56]} 4. b3 {[%emt 0:01:08]} Bg4 {[%emt 0:00:28]} 5. Bb2 {[%emt 0:00:21]} e6 {[%emt 0:07:08]} 6. h3 {[%emt 0:01:01]} Bh5 {[%emt 0:01:33]} 7. Nc3 {[%emt 0:08:39]} h6 {[%emt 0:05:54]} 8. cxd5 {[%emt 0:05:46]} exd5 {[%emt 0:02:13]} 9. Bd3 {[%emt 0:00:48]} Bxf3 {[%emt 0:08:01]} 10. Qxf3 {[%emt 0:00:10]} Bd6 {[%emt 0:00:18]} 11. Bf5 {[%emt 0:06:22]} Nbd7 {[%emt 0:02:43]} 12. g4 {[%emt 0:13:54]} Qe7 {[%emt 0:04:00]} 13. Rc1 {[%emt 0:07:44]} Nc5 {[%emt 0:03:28]} 14. b4 {[%emt 0:05:08]} Ne6 {[%emt 0:14:14]} 15. b5 {[%emt 0:01:26]} Nd4 {[%emt 0:00:37]} 16. Qg2 {[%emt 0:00:33]} Nxf5 {[%emt 0:03:46]} 17. gxf5 {[%emt 0:00:05]} Rg8 {[%emt 0:00:09]} 18. bxc6 {[%emt 0:00:36]} bxc6 {[%emt 0:00:02]} 19. Ne2 {[%emt 0:00:32]} Rc8 {[%emt 0:04:43]} 20. Qf3 {[%emt 0:05:41]} Ne4 {[%emt 0:03:22]} 21. Nc3 {[%emt 0:04:14]} Rb8 {[%emt 0:02:32]} 22. Rc2 {[%emt 0:02:16]} Nxc3 {[%emt 0:02:36]} 23. Bxc3 {[%emt 0:00:20]} Kd7 {[%emt 0:07:03]} 24. Ke2 {[%emt 0:01:25]} Be5 {[%emt 0:00:19]} 25. Qg4 {[%emt 0:02:38]} Bxc3 {[%emt 0:03:52]} 26. Rxc3 {[%emt 0:03:04]} Qb4 {[%emt 0:00:15]} 27. f6+ {[%emt 0:02:25]} Qxg4+ {[%emt 0:03:04]} 28. hxg4 {[%emt 0:02:15]} Rb6 {[%emt 0:00:01]} 29. f3 {[%emt 0:02:50]} gxf6 {[%emt 0:01:09]} 30. Rxh6 {[%emt 0:00:06]} Ke7 {[%emt 0:00:29]} 31. Ra3 {[%emt 0:00:30]} Ra8 {[%emt 0:01:22]} 32. Ra5 {[%emt 0:01:20]} a6 {[%emt 0:04:06]} 33. g5 {[%emt 0:01:51]} Rg8 {[%emt 0:02:51]} 34. gxf6+ {[%emt 0:03:32]} Kd6 {[%emt 0:00:08]} 35. e4 {[%emt 0:01:57]} dxe4 {[%emt 0:05:12]} 36. fxe4 {[%emt 0:00:13]} Rg2+ {[%emt 0:00:05]} 37. Ke3 {[%emt 0:00:29]} Rb2 {[%emt 0:00:08]} 38. Rh8 {[%emt 0:01:26]} Kd7 {[%emt 0:02:23]} 39. Re5 {[%emt 0:01:44]} c5 {[%emt 0:02:59]} 40. Re7+ {[%emt 0:00:00]} Kc6 {[%emt 0:00:00]} 41. Rc8+ {[%emt 0:00:43]} Kd6 {[%emt 0:00:04]} 42. Rd8+ {[%emt 0:00:05]} Kc6 {[%emt 0:00:04]} 43. Rxf7 {[%emt 0:00:23] Kd5} 1-0